[Event "*** Titled Tuesday Blitz"]
[Site "Chess.com"]
[Date "2020.04.28"]
[Round "3"]
[White "Iyael"]
[Black "AttilaTurzo"]
[Result "0-1"]
[WhiteElo "2120"]
[BlackElo "2487"]
[TimeControl "180+1"]
[EndTime "10:24:54 PDT"]
[Termination "AttilaTurzo won by resignation"]

1. e4 {[%clk 0:03:00.9]} 1... c5 {[%clk 0:02:59.5]} 2. c3 {[%clk 0:02:58.4]}
2... Nf6 {[%clk 0:02:59.1]} 3. e5 {[%clk 0:02:55.8]} 3... Nd5 {[%clk 0:02:59.2]}
4. d4 {[%clk 0:02:54.7]} 4... cxd4 {[%clk 0:03:00.1]} 5. Nf3 {[%clk 0:02:53.9]}
5... Nc6 {[%clk 0:03:00]} 6. cxd4 {[%clk 0:02:48.9]} 6... d6 {[%clk 0:02:59.5]}
7. Bc4 {[%clk 0:02:48.6]} 7... dxe5 {[%clk 0:02:57.1]} 8. dxe5 {[%clk
0:02:45.9]} 8... Ndb4 {[%clk 0:02:56.3]} 9. Qxd8+ {[%clk 0:02:39.6]} 9... Nxd8
{[%clk 0:02:54.7]} 10. Na3 {[%clk 0:02:38.1]} 10... a6 {[%clk 0:02:52.7]} 11.
O-O {[%clk 0:02:37.2]} 11... b5 {[%clk 0:02:52]} 12. Bb3 {[%clk 0:02:36]} 12...
Bb7 {[%clk 0:02:52.2]} 13. Nd4 {[%clk 0:02:33.8]} 13... e6 {[%clk 0:02:51.7]}
14. Be3 {[%clk 0:02:29.1]} 14... Nd5 {[%clk 0:02:46.7]} 15. Bg5 {[%clk
0:02:26.4]} 15... h6 {[%clk 0:02:45.7]} 16. Bh4 {[%clk 0:02:21.1]} 16... Bc5
{[%clk 0:02:35.2]} 17. Nac2 {[%clk 0:02:19.6]} 17... O-O {[%clk 0:02:32.3]} 18.
Rfd1 {[%clk 0:02:17.9]} 18... Rc8 {[%clk 0:02:24.3]} 19. Rac1 {[%clk 0:02:16.8]}
19... Nf4 {[%clk 0:02:22.2]} 20. Ne3 {[%clk 0:02:05.9]} 20... Bxd4 {[%clk
0:02:17.4]} 21. Rxc8 {[%clk 0:01:56.8]} 21... Bxc8 {[%clk 0:02:17.3]} 22. Rxd4
{[%clk 0:01:53.1]} 22... Ne2+ {[%clk 0:02:16.8]} 0-1

[Event "*** Titled Tuesday Blitz"]
[Site "Chess.com"]
[Date "2020.04.28"]
[Round "3"]
[White "DryCounty"]
[Black "Rumpel-VK"]
[Result "1/2-1/2"]
[WhiteElo "2759"]
[BlackElo "2593"]
[TimeControl "180+1"]
[EndTime "10:24:59 PDT"]
[Termination "Game drawn by agreement"]

1. e4 {[%clk 0:03:00.9]} 1... c5 {[%clk 0:02:59.2]} 2. Nf3 {[%clk 0:03:00.5]}
2... Nc6 {[%clk 0:02:59.1]} 3. d4 {[%clk 0:02:59.9]} 3... cxd4 {[%clk
0:02:58.4]} 4. Nxd4 {[%clk 0:03:00.8]} 4... e5 {[%clk 0:02:58.6]} 5. Nb5 {[%clk
0:02:59.8]} 5... a6 {[%clk 0:02:58.4]} 6. Nd6+ {[%clk 0:02:59.3]} 6... Bxd6
{[%clk 0:02:58.5]} 7. Qxd6 {[%clk 0:02:59.5]} 7... Qe7 {[%clk 0:02:58.8]} 8.
Qxe7+ {[%clk 0:02:59.2]} 8... Ngxe7 {[%clk 0:02:56.5]} 9. Nc3 {[%clk 0:02:59.5]}
9... d5 {[%clk 0:02:56.5]} 10. exd5 {[%clk 0:02:57]} 10... Nb4 {[%clk
0:02:55.9]} 11. Bd3 {[%clk 0:02:56.8]} 11... Nxd3+ {[%clk 0:02:55.9]} 12. cxd3
{[%clk 0:02:56.8]} 12... Bf5 {[%clk 0:02:56]} 13. O-O {[%clk 0:02:54.2]} 13...
O-O-O {[%clk 0:02:43]} 14. f4 {[%clk 0:02:44.8]} 14... Bxd3 {[%clk 0:02:40.9]}
15. Re1 {[%clk 0:02:33.8]} 15... Nxd5 {[%clk 0:02:35.1]} 16. Nxd5 {[%clk
0:02:26.7]} 16... Rxd5 {[%clk 0:02:34.5]} 17. fxe5 {[%clk 0:02:27.1]} 17... Kd7
{[%clk 0:02:30.4]} 18. Bf4 {[%clk 0:02:20.9]} 18... Rc8 {[%clk 0:02:25.8]} 19.
Rac1 {[%clk 0:02:18.1]} 19... Rc2 {[%clk 0:02:06.7]} 20. Rxc2 {[%clk 0:02:16.2]}
20... Bxc2 {[%clk 0:02:06.4]} 21. Rc1 {[%clk 0:02:13.8]} 1/2-1/2

[Event "*** Titled Tuesday Blitz"]
[Site "Chess.com"]
[Date "2020.04.28"]
[Round "3"]
[White "Sjakkerntobi"]
[Black "Suleyman_Chess06"]
[Result "1-0"]
[WhiteElo "2195"]
[BlackElo "2363"]
[TimeControl "180+1"]
[EndTime "10:25:17 PDT"]
[Termination "Sjakkerntobi won by checkmate"]

1. e4 {[%clk 0:03:00.9]} 1... e6 {[%clk 0:02:59.7]} 2. d4 {[%clk 0:03:00.6]}
2... d5 {[%clk 0:02:59.4]} 3. Nd2 {[%clk 0:03:01.2]} 3... dxe4 {[%clk
0:02:59.4]} 4. Nxe4 {[%clk 0:03:01.1]} 4... Bd7 {[%clk 0:03:00.3]} 5. Nf3 {[%clk
0:03:00.5]} 5... Bc6 {[%clk 0:03:00.6]} 6. Bd3 {[%clk 0:03:01.2]} 6... Nd7
{[%clk 0:03:01]} 7. O-O {[%clk 0:02:59.9]} 7... Ngf6 {[%clk 0:03:01.1]} 8. Qe2
{[%clk 0:02:55.9]} 8... Be7 {[%clk 0:03:00.9]} 9. c3 {[%clk 0:02:52.2]} 9... O-O
{[%clk 0:03:00.1]} 10. Neg5 {[%clk 0:02:44.9]} 10... h6 {[%clk 0:02:57.5]} 11.
Nh3 {[%clk 0:02:42.9]} 11... b6 {[%clk 0:02:49.2]} 12. Nf4 {[%clk 0:02:39.4]}
12... Bb7 {[%clk 0:02:41.3]} 13. Ne5 {[%clk 0:02:26.1]} 13... Nxe5 {[%clk
0:02:37.5]} 14. dxe5 {[%clk 0:02:27]} 14... Nd5 {[%clk 0:02:37]} 15. Qe4 {[%clk
0:02:21.9]} 15... f5 {[%clk 0:01:53.3]} 16. exf6 {[%clk 0:02:17.6]} 16... Rxf6
{[%clk 0:01:53.2]} 17. Qh7+ {[%clk 0:02:11.1]} 17... Kf7 {[%clk 0:01:52]} 18.
Bg6+ {[%clk 0:02:07.5]} 18... Rxg6 {[%clk 0:01:51.8]} 19. Qxg6+ {[%clk
0:02:06.1]} 19... Kg8 {[%clk 0:01:51.9]} 20. Nxe6 {[%clk 0:02:01.6]} 20... Qd6
{[%clk 0:01:49.7]} 21. Qxg7# {[%clk 0:02:00.3]} 1-0

[Event "*** Titled Tuesday Blitz"]
[Site "Chess.com"]
[Date "2020.04.28"]
[Round "3"]
[White "Jaka_Brilej"]
[Black "Chess_Boxer123"]
[Result "0-1"]
[WhiteElo "2365"]
[BlackElo "2567"]
[TimeControl "180+1"]
[EndTime "10:25:36 PDT"]
[Termination "Chess_Boxer123 won by resignation"]

1. e4 {[%clk 0:03:00.9]} 1... c5 {[%clk 0:02:59.5]} 2. Nf3 {[%clk 0:02:59.1]}
2... Nc6 {[%clk 0:02:59.7]} 3. d4 {[%clk 0:02:55.9]} 3... cxd4 {[%clk
0:03:00.6]} 4. Nxd4 {[%clk 0:02:54.6]} 4... Nf6 {[%clk 0:03:00.8]} 5. Nc3 {[%clk
0:02:53.9]} 5... e5 {[%clk 0:03:00.6]} 6. Ndb5 {[%clk 0:02:53.8]} 6... d6 {[%clk
0:03:00.8]} 7. Bg5 {[%clk 0:02:53.4]} 7... a6 {[%clk 0:03:00.8]} 8. Na3 {[%clk
0:02:53.4]} 8... b5 {[%clk 0:03:00.8]} 9. Nd5 {[%clk 0:02:53.5]} 9... Be7 {[%clk
0:03:00.5]} 10. Bxf6 {[%clk 0:02:52.6]} 10... Bxf6 {[%clk 0:03:01.4]} 11. c3
{[%clk 0:02:52.4]} 11... O-O {[%clk 0:03:01.2]} 12. Nc2 {[%clk 0:02:51.8]} 12...
Rb8 {[%clk 0:03:01.6]} 13. a4 {[%clk 0:02:26.5]} 13... bxa4 {[%clk 0:02:59.1]}
14. Ncb4 {[%clk 0:02:26.2]} 14... Nxb4 {[%clk 0:02:53.1]} 15. Nxb4 {[%clk
0:02:14.7]} 15... Bb7 {[%clk 0:02:52.5]} 16. Bd3 {[%clk 0:02:08.5]} 16... a5
{[%clk 0:02:50.4]} 17. Nc2 {[%clk 0:02:02.8]} 17... d5 {[%clk 0:02:50.5]} 18.
exd5 {[%clk 0:01:54.4]} 18... Bxd5 {[%clk 0:02:50]} 19. Ne3 {[%clk 0:01:45]}
19... Bb3 {[%clk 0:02:40.3]} 20. Qe2 {[%clk 0:01:44.6]} 20... g6 {[%clk
0:02:38.2]} 21. O-O {[%clk 0:01:44.1]} 21... Bg5 {[%clk 0:02:38.4]} 22. Nc4
{[%clk 0:01:14.2]} 22... Re8 {[%clk 0:02:32.8]} 23. Nd2 {[%clk 0:01:03.1]} 23...
Bxd2 {[%clk 0:02:31.1]} 24. Qxd2 {[%clk 0:01:03.3]} 24... e4 {[%clk 0:02:31.7]}
0-1

[Event "*** Titled Tuesday Blitz"]
[Site "Chess.com"]
[Date "2020.04.28"]
[Round "3"]
[White "ZAbdumalik"]
[Black "adricalderon8"]
[Result "1-0"]
[WhiteElo "2647"]
[BlackElo "2411"]
[TimeControl "180+1"]
[EndTime "10:25:38 PDT"]
[Termination "ZAbdumalik won by resignation"]

1. e4 {[%clk 0:03:00.9]} 1... c5 {[%clk 0:02:58.3]} 2. Nf3 {[%clk 0:03:01.2]}
2... Nc6 {[%clk 0:02:56.5]} 3. d4 {[%clk 0:03:01.4]} 3... cxd4 {[%clk
0:02:56.1]} 4. Nxd4 {[%clk 0:03:01.9]} 4... g6 {[%clk 0:02:57]} 5. c4 {[%clk
0:03:01.6]} 5... Bg7 {[%clk 0:02:56.7]} 6. Nc2 {[%clk 0:03:01.7]} 6... d6 {[%clk
0:02:55.6]} 7. Nc3 {[%clk 0:02:59.9]} 7... Nh6 {[%clk 0:02:54.9]} 8. Be2 {[%clk
0:02:58.7]} 8... O-O {[%clk 0:02:53.8]} 9. O-O {[%clk 0:02:58.4]} 9... f5 {[%clk
0:02:53.4]} 10. exf5 {[%clk 0:02:50.9]} 10... Nxf5 {[%clk 0:02:54.3]} 11. Ne3
{[%clk 0:02:49.5]} 11... Nfd4 {[%clk 0:02:51]} 12. Bd3 {[%clk 0:02:46.7]} 12...
e5 {[%clk 0:02:47.9]} 13. Ncd5 {[%clk 0:02:43.5]} 13... Be6 {[%clk 0:02:44.1]}
14. Bd2 {[%clk 0:02:40.8]} 14... Rf7 {[%clk 0:02:43.3]} 15. b4 {[%clk
0:02:37.6]} 15... Qh4 {[%clk 0:02:36.2]} 16. b5 {[%clk 0:02:33.7]} 16... Ne7
{[%clk 0:02:36.4]} 17. Nc7 {[%clk 0:02:31.7]} 17... Re8 {[%clk 0:02:30.7]} 18.
Nxe8 {[%clk 0:02:31]} 18... Nef5 {[%clk 0:02:08]} 19. Nxf5 {[%clk 0:02:28.3]}
19... Bxf5 {[%clk 0:02:04.2]} 20. Bxf5 {[%clk 0:02:19.9]} 20... Rxf5 {[%clk
0:02:05.1]} 21. Nxg7 {[%clk 0:02:19.7]} 21... Kxg7 {[%clk 0:02:03.7]} 22. h3
{[%clk 0:02:15.3]} 22... Nf3+ {[%clk 0:02:01.5]} 23. Kh1 {[%clk 0:02:12.2]}
23... e4 {[%clk 0:01:54.5]} 24. Bc3+ {[%clk 0:02:12]} 24... Kh6 {[%clk
0:01:51.9]} 25. Qxd6 {[%clk 0:02:09.5]} 25... Rg5 {[%clk 0:01:42.5]} 26. Bf6
{[%clk 0:02:00.6]} 1-0

[Event "*** Titled Tuesday Blitz"]
[Site "Chess.com"]
[Date "2020.04.28"]
[Round "3"]
[White "mishanick"]
[Black "mirceaparligras"]
[Result "1-0"]
[WhiteElo "3027"]
[BlackElo "2670"]
[TimeControl "180+1"]
[EndTime "10:25:51 PDT"]
[Termination "mishanick won by resignation"]

1. d4 {[%clk 0:03:00.9]} 1... Nf6 {[%clk 0:02:59.7]} 2. c4 {[%clk 0:03:01.5]}
2... e6 {[%clk 0:02:59.6]} 3. Nf3 {[%clk 0:03:01.8]} 3... d5 {[%clk 0:02:59.5]}
4. Nc3 {[%clk 0:03:02.1]} 4... Bb4 {[%clk 0:02:58.9]} 5. Bg5 {[%clk 0:03:02.1]}
5... h6 {[%clk 0:02:57.9]} 6. Bxf6 {[%clk 0:03:02.4]} 6... Qxf6 {[%clk
0:02:58.8]} 7. Qb3 {[%clk 0:03:03]} 7... c5 {[%clk 0:02:56.4]} 8. cxd5 {[%clk
0:03:03.1]} 8... exd5 {[%clk 0:02:54.5]} 9. e3 {[%clk 0:03:03.6]} 9... Nc6
{[%clk 0:02:52.3]} 10. Bb5 {[%clk 0:02:46.8]} 10... O-O {[%clk 0:02:46.6]} 11.
dxc5 {[%clk 0:02:42.7]} 11... Bg4 {[%clk 0:02:27.8]} 12. Bxc6 {[%clk 0:02:40.9]}
12... Bxc3+ {[%clk 0:02:18.9]} 13. Qxc3 {[%clk 0:02:40.5]} 13... Qxc3+ {[%clk
0:01:59.2]} 14. bxc3 {[%clk 0:02:41.4]} 14... bxc6 {[%clk 0:01:53]} 15. Ne5
{[%clk 0:02:41.1]} 15... Bf5 {[%clk 0:01:49.9]} 16. Nxc6 {[%clk 0:02:40.7]}
16... Rfe8 {[%clk 0:01:46.6]} 17. Nd4 {[%clk 0:02:35.1]} 17... Bd3 {[%clk
0:01:45.9]} 18. Kd2 {[%clk 0:02:35.1]} 18... Bc4 {[%clk 0:01:44.2]} 19. Rhb1
{[%clk 0:02:35]} 19... Rac8 {[%clk 0:01:42.6]} 20. c6 {[%clk 0:02:35.2]} 20...
Ba6 {[%clk 0:01:37.6]} 21. Rb4 {[%clk 0:02:33.7]} 21... Rc7 {[%clk 0:01:35.3]}
22. Rab1 {[%clk 0:02:32.8]} 22... Rec8 {[%clk 0:01:33.3]} 23. Rb8 {[%clk
0:02:32.1]} 23... Kf8 {[%clk 0:01:31.6]} 24. R1b4 {[%clk 0:02:26.6]} 24... Ke7
{[%clk 0:01:26.5]} 25. Rxc8 {[%clk 0:02:24]} 25... Bxc8 {[%clk 0:01:26.1]} 26.
Rb5 {[%clk 0:02:22.1]} 26... Kd6 {[%clk 0:01:22.3]} 27. Ra5 {[%clk 0:02:20.3]}
27... a6 {[%clk 0:01:20.2]} 28. c4 {[%clk 0:02:20.3]} 28... dxc4 {[%clk
0:01:17.6]} 29. Kc3 {[%clk 0:02:20.8]} 29... Be6 {[%clk 0:01:17.4]} 30. Rxa6
{[%clk 0:02:20]} 30... Bd5 {[%clk 0:01:13.9]} 31. Nb5+ {[%clk 0:02:19.4]} 1-0

[Event "*** Titled Tuesday Blitz"]
[Site "Chess.com"]
[Date "2020.04.28"]
[Round "3"]
[White "Oligan22"]
[Black "archess2"]
[Result "1-0"]
[WhiteElo "2427"]
[BlackElo "2211"]
[TimeControl "180+1"]
[EndTime "10:26:12 PDT"]
[Termination "Oligan22 won by resignation"]

1. e4 {[%clk 0:03:00.9]} 1... c6 {[%clk 0:02:58.6]} 2. d4 {[%clk 0:02:59.7]}
2... d5 {[%clk 0:02:57.5]} 3. Nc3 {[%clk 0:03:00.3]} 3... dxe4 {[%clk
0:02:55.7]} 4. Nxe4 {[%clk 0:03:01.2]} 4... Bf5 {[%clk 0:02:54.5]} 5. Nc5 {[%clk
0:03:00.2]} 5... Qc7 {[%clk 0:02:52.1]} 6. Bd3 {[%clk 0:02:54]} 6... Bxd3 {[%clk
0:02:52]} 7. Nxd3 {[%clk 0:02:54.9]} 7... e6 {[%clk 0:02:52.2]} 8. Nf3 {[%clk
0:02:53.3]} 8... Nd7 {[%clk 0:02:50.6]} 9. O-O {[%clk 0:02:50.2]} 9... Bd6
{[%clk 0:02:49.9]} 10. c4 {[%clk 0:02:49.7]} 10... Ngf6 {[%clk 0:02:41.6]} 11.
c5 {[%clk 0:02:47.6]} 11... Be7 {[%clk 0:02:41.8]} 12. Bf4 {[%clk 0:02:47.7]}
12... Qd8 {[%clk 0:02:41.1]} 13. b4 {[%clk 0:02:22.5]} 13... Nd5 {[%clk
0:02:38.3]} 14. Bg3 {[%clk 0:02:22.6]} 14... Bf6 {[%clk 0:02:32]} 15. a4 {[%clk
0:02:17.3]} 15... O-O {[%clk 0:02:31.4]} 16. b5 {[%clk 0:02:08]} 16... Qa5
{[%clk 0:02:21.6]} 17. Bd6 {[%clk 0:01:45.9]} 17... Rfd8 {[%clk 0:02:11.4]} 18.
Qb3 {[%clk 0:01:28.3]} 18... Qc3 {[%clk 0:02:00.4]} 19. Qxc3 {[%clk 0:01:04.9]}
19... Nxc3 {[%clk 0:02:00.3]} 20. bxc6 {[%clk 0:01:05.8]} 20... bxc6 {[%clk
0:01:59.8]} 21. Nde5 {[%clk 0:01:06.5]} 21... Nxe5 {[%clk 0:01:57]} 22. dxe5
{[%clk 0:01:05.8]} 1-0

[Event "*** Titled Tuesday Blitz"]
[Site "Chess.com"]
[Date "2020.04.28"]
[Round "3"]
[White "AcsinteMatei"]
[Black "Gyapiking"]
[Result "1-0"]
[WhiteElo "2278"]
[BlackElo "2497"]
[TimeControl "180+1"]
[EndTime "10:26:26 PDT"]
[Termination "AcsinteMatei won by resignation"]

1. d4 {[%clk 0:02:59.3]} 1... d6 {[%clk 0:02:58.7]} 2. e4 {[%clk 0:02:54.7]}
2... g6 {[%clk 0:02:57.2]} 3. h4 {[%clk 0:02:54.2]} 3... Nf6 {[%clk 0:02:56.1]}
4. Nc3 {[%clk 0:02:52.5]} 4... Nc6 {[%clk 0:02:55.4]} 5. Bc4 {[%clk 0:02:49.6]}
5... Bg7 {[%clk 0:02:49.1]} 6. Be3 {[%clk 0:02:36.2]} 6... e5 {[%clk 0:02:46.9]}
7. Nge2 {[%clk 0:02:32.8]} 7... O-O {[%clk 0:02:43.3]} 8. Qd2 {[%clk 0:02:29.2]}
8... Nxe4 {[%clk 0:02:22.2]} 9. Nxe4 {[%clk 0:02:20.8]} 9... d5 {[%clk
0:02:22.1]} 10. Bg5 {[%clk 0:02:20.6]} 10... f6 {[%clk 0:02:15.1]} 11. dxe5
{[%clk 0:02:16.3]} 11... fxg5 {[%clk 0:02:00.2]} 12. Bxd5+ {[%clk 0:01:29.8]}
12... Kh8 {[%clk 0:01:59.2]} 13. hxg5 {[%clk 0:01:30]} 13... Nb4 {[%clk
0:01:35.6]} 14. Qxb4 {[%clk 0:01:02]} 14... Qxd5 {[%clk 0:01:34.7]} 15. Nf6
{[%clk 0:01:02.5]} 1-0

[Event "*** Titled Tuesday Blitz"]
[Site "Chess.com"]
[Date "2020.04.28"]
[Round "3"]
[White "mohssenbinaddi"]
[Black "2346PL"]
[Result "0-1"]
[WhiteElo "2144"]
[BlackElo "2490"]
[TimeControl "180+1"]
[EndTime "10:26:29 PDT"]
[Termination "2346PL won by resignation"]

1. d4 {[%clk 0:03:00.9]} 1... f5 {[%clk 0:02:59.5]} 2. Nf3 {[%clk 0:03:01.8]}
2... Nf6 {[%clk 0:02:59.9]} 3. Nc3 {[%clk 0:03:01.7]} 3... g6 {[%clk 0:03:00.4]}
4. Bg5 {[%clk 0:03:02.2]} 4... Bg7 {[%clk 0:03:00.7]} 5. Bxf6 {[%clk 0:03:02.5]}
5... Bxf6 {[%clk 0:03:00.7]} 6. e4 {[%clk 0:03:03.4]} 6... fxe4 {[%clk 0:03:00]}
7. Nxe4 {[%clk 0:03:04.2]} 7... O-O {[%clk 0:03:00.5]} 8. Nxf6+ {[%clk
0:03:03.7]} 8... exf6 {[%clk 0:03:00.5]} 9. Bc4+ {[%clk 0:03:03.7]} 9... d5
{[%clk 0:03:00.3]} 10. Be2 {[%clk 0:03:00.4]} 10... c6 {[%clk 0:02:51.1]} 11.
Qd2 {[%clk 0:03:00.2]} 11... Bg4 {[%clk 0:02:51]} 12. O-O-O {[%clk 0:02:58.4]}
12... Nd7 {[%clk 0:02:49.2]} 13. h3 {[%clk 0:02:58.5]} 13... Bxf3 {[%clk
0:02:49.5]} 14. Bxf3 {[%clk 0:02:55.2]} 14... Qc7 {[%clk 0:02:42.6]} 15. h4
{[%clk 0:02:54.7]} 15... Nb6 {[%clk 0:02:40]} 16. b3 {[%clk 0:02:52.3]} 16...
Qd6 {[%clk 0:02:37.7]} 17. h5 {[%clk 0:02:48.9]} 17... g5 {[%clk 0:02:37.3]} 18.
h6 {[%clk 0:02:45.6]} 18... a5 {[%clk 0:02:27]} 19. a4 {[%clk 0:02:41.5]} 19...
Qa3+ {[%clk 0:02:26.3]} 20. Kb1 {[%clk 0:02:39.9]} 20... Nxa4 {[%clk 0:02:23.3]}
21. bxa4 {[%clk 0:02:38.9]} 21... Ra6 {[%clk 0:02:23.5]} 22. Be2 {[%clk
0:02:02.6]} 22... Rb6+ {[%clk 0:02:22.8]} 23. Bb5 {[%clk 0:02:02.5]} 23... cxb5
{[%clk 0:02:13.4]} 24. Qxa5 {[%clk 0:02:02]} 24... Ra6 {[%clk 0:01:49]} 25. Qxb5
{[%clk 0:01:56.5]} 25... Rxa4 {[%clk 0:01:47.8]} 26. Qxd5+ {[%clk 0:01:32.9]}
26... Kh8 {[%clk 0:01:47.6]} 27. c3 {[%clk 0:01:19.3]} 27... Qxc3 {[%clk
0:01:47.4]} 0-1

[Event "*** Titled Tuesday Blitz"]
[Site "Chess.com"]
[Date "2020.04.28"]
[Round "3"]
[White "Infernal_XaM"]
[Black "RubensCezila"]
[Result "1-0"]
[WhiteElo "2911"]
[BlackElo "2465"]
[TimeControl "180+1"]
[EndTime "10:26:31 PDT"]
[Termination "Infernal_XaM won by resignation"]

1. d4 {[%clk 0:03:00.9]} 1... Nf6 {[%clk 0:03:00]} 2. c4 {[%clk 0:03:01.8]} 2...
e6 {[%clk 0:03:00.3]} 3. Nf3 {[%clk 0:03:02.7]} 3... b6 {[%clk 0:03:00.2]} 4. g3
{[%clk 0:03:03.6]} 4... Ba6 {[%clk 0:03:00.4]} 5. Nbd2 {[%clk 0:03:00]} 5... Bb7
{[%clk 0:02:59.3]} 6. Bg2 {[%clk 0:02:59.6]} 6... Bb4 {[%clk 0:02:58.7]} 7. O-O
{[%clk 0:03:00]} 7... O-O {[%clk 0:02:58.2]} 8. Qc2 {[%clk 0:02:57.1]} 8... c5
{[%clk 0:02:55.1]} 9. d5 {[%clk 0:02:50.7]} 9... exd5 {[%clk 0:02:47.8]} 10.
cxd5 {[%clk 0:02:50.1]} 10... Bxd5 {[%clk 0:02:42.8]} 11. e4 {[%clk 0:02:49.3]}
11... Bb7 {[%clk 0:02:29.1]} 12. e5 {[%clk 0:02:48.5]} 12... Nd5 {[%clk
0:02:07.3]} 13. Ne4 {[%clk 0:02:44.3]} 13... Nc6 {[%clk 0:01:58.5]} 14. Rd1
{[%clk 0:02:39.3]} 14... Nd4 {[%clk 0:01:48.7]} 15. Nxd4 {[%clk 0:02:37.3]}
15... cxd4 {[%clk 0:01:49.6]} 16. Ng5 {[%clk 0:02:35.6]} 16... g6 {[%clk
0:01:38.4]} 17. Rxd4 {[%clk 0:02:34.9]} 17... Rc8 {[%clk 0:01:33.5]} 18. Qd1
{[%clk 0:02:34.8]} 18... Bc5 {[%clk 0:00:12]} 19. Rxd5 {[%clk 0:02:32.7]} 19...
Bxd5 {[%clk 0:00:11.1]} 20. Bxd5 {[%clk 0:02:32.1]} 20... Qe7 {[%clk 0:00:11.6]}
21. Bf4 {[%clk 0:02:30.2]} 21... h6 {[%clk 0:00:10.3]} 22. Ne4 {[%clk
0:02:29.4]} 22... g5 {[%clk 0:00:11.2]} 23. Qh5 {[%clk 0:02:28]} 1-0

[Event "*** Titled Tuesday Blitz"]
[Site "Chess.com"]
[Date "2020.04.28"]
[Round "3"]
[White "blitzking1729"]
[Black "almaguerjm"]
[Result "1-0"]
[WhiteElo "2563"]
[BlackElo "2361"]
[TimeControl "180+1"]
[EndTime "10:26:31 PDT"]
[Termination "blitzking1729 won by checkmate"]

1. Nf3 {[%clk 0:02:59.9]} 1... Nf6 {[%clk 0:02:58]} 2. g3 {[%clk 0:02:59.6]}
2... d5 {[%clk 0:02:57.5]} 3. Bg2 {[%clk 0:02:59.9]} 3... Bf5 {[%clk 0:02:56.1]}
4. O-O {[%clk 0:02:59.8]} 4... Nc6 {[%clk 0:02:56.6]} 5. d4 {[%clk 0:02:58.9]}
5... Qd7 {[%clk 0:02:56.5]} 6. Ne5 {[%clk 0:02:58.9]} 6... Qc8 {[%clk
0:02:52.2]} 7. Nc3 {[%clk 0:02:51.3]} 7... Bh3 {[%clk 0:02:51]} 8. Nxc6 {[%clk
0:02:46.9]} 8... bxc6 {[%clk 0:02:49.5]} 9. Bg5 {[%clk 0:02:46.8]} 9... h5
{[%clk 0:02:46.5]} 10. Re1 {[%clk 0:02:43.8]} 10... Rb8 {[%clk 0:02:43.7]} 11.
Bxf6 {[%clk 0:02:42.9]} 11... gxf6 {[%clk 0:02:40.9]} 12. e4 {[%clk 0:02:39.2]}
12... h4 {[%clk 0:02:21.1]} 13. Bxh3 {[%clk 0:02:38.8]} 13... Qxh3 {[%clk
0:02:20.1]} 14. Qe2 {[%clk 0:02:39]} 14... dxe4 {[%clk 0:01:47.3]} 15. Nxe4
{[%clk 0:02:37.9]} 15... Kd8 {[%clk 0:01:38.1]} 16. Nxf6 {[%clk 0:02:24.8]}
16... hxg3 {[%clk 0:01:35.2]} 17. fxg3 {[%clk 0:02:24.2]} 17... Rxb2 {[%clk
0:01:31.8]} 18. Rad1 {[%clk 0:02:10.4]} 18... Rxa2 {[%clk 0:01:16]} 19. d5
{[%clk 0:02:06.9]} 19... c5 {[%clk 0:01:13.5]} 20. d6 {[%clk 0:01:53.5]} 20...
cxd6 {[%clk 0:01:02]} 21. Rxd6+ {[%clk 0:01:51.6]} 21... exd6 {[%clk 0:00:57.4]}
22. Qe8+ {[%clk 0:01:50.7]} 22... Kc7 {[%clk 0:00:57.7]} 23. Nd5+ {[%clk
0:01:50.1]} 23... Kb7 {[%clk 0:00:51.2]} 24. Rb1+ {[%clk 0:01:48.1]} 24... Ka6
{[%clk 0:00:50.1]} 25. Qb5# {[%clk 0:01:47.2]} 1-0

[Event "*** Titled Tuesday Blitz"]
[Site "Chess.com"]
[Date "2020.04.28"]
[Round "3"]
[White "Tiqr777"]
[Black "fugadelafuga"]
[Result "1-0"]
[WhiteElo "2596"]
[BlackElo "2393"]
[TimeControl "180+1"]
[EndTime "10:26:42 PDT"]
[Termination "Tiqr777 won by resignation"]

1. d4 {[%clk 0:03:00.9]} 1... Nf6 {[%clk 0:02:54.3]} 2. Nf3 {[%clk 0:03:01.3]}
2... e6 {[%clk 0:02:52.6]} 3. Bg5 {[%clk 0:03:01.6]} 3... d5 {[%clk 0:02:53.5]}
4. Nbd2 {[%clk 0:03:01.9]} 4... Be7 {[%clk 0:02:53.9]} 5. e3 {[%clk 0:03:02.2]}
5... O-O {[%clk 0:02:53.3]} 6. Bd3 {[%clk 0:03:02.6]} 6... c5 {[%clk 0:02:53.8]}
7. c3 {[%clk 0:03:02.7]} 7... Nc6 {[%clk 0:02:53.7]} 8. O-O {[%clk 0:03:02.6]}
8... h6 {[%clk 0:02:54.6]} 9. Bh4 {[%clk 0:03:02.5]} 9... c4 {[%clk 0:02:54.3]}
10. Bb1 {[%clk 0:03:01.9]} 10... b5 {[%clk 0:02:55.2]} 11. e4 {[%clk 0:03:01.8]}
11... dxe4 {[%clk 0:02:52.3]} 12. Nxe4 {[%clk 0:03:02.2]} 12... Nxe4 {[%clk
0:02:51.9]} 13. Bxe4 {[%clk 0:03:01]} 13... Bxh4 {[%clk 0:02:47.4]} 14. Bxc6
{[%clk 0:03:01]} 14... Rb8 {[%clk 0:02:46.2]} 15. Ne5 {[%clk 0:02:59.6]} 15...
Bb7 {[%clk 0:02:41.2]} 16. Qf3 {[%clk 0:02:57.5]} 16... Qc7 {[%clk 0:02:34.6]}
17. Bxb7 {[%clk 0:02:54.9]} 17... Rxb7 {[%clk 0:02:32]} 18. a3 {[%clk
0:02:50.8]} 18... Bf6 {[%clk 0:02:28.7]} 19. Ng4 {[%clk 0:02:50.1]} 19... Be7
{[%clk 0:02:28.3]} 20. Rfe1 {[%clk 0:02:50]} 20... a5 {[%clk 0:02:27.3]} 21. g3
{[%clk 0:02:49.6]} 21... b4 {[%clk 0:02:26.3]} 22. axb4 {[%clk 0:02:49.9]} 22...
axb4 {[%clk 0:02:27.2]} 23. Ne5 {[%clk 0:02:50]} 23... bxc3 {[%clk 0:02:26]} 24.
bxc3 {[%clk 0:02:50.7]} 24... Bd6 {[%clk 0:02:24.2]} 25. Nxc4 {[%clk 0:02:48.2]}
25... Rb3 {[%clk 0:02:18.9]} 26. Nxd6 {[%clk 0:02:44.1]} 26... Qxd6 {[%clk
0:02:19.8]} 27. Rab1 {[%clk 0:02:42.8]} 27... Rfb8 {[%clk 0:02:14.9]} 28. Rxb3
{[%clk 0:02:42.4]} 28... Rxb3 {[%clk 0:02:15.8]} 29. Qa8+ {[%clk 0:02:42.8]}
29... Kh7 {[%clk 0:02:14.7]} 30. Qe4+ {[%clk 0:02:42.7]} 30... g6 {[%clk
0:02:14.3]} 31. c4 {[%clk 0:02:42]} 31... Rb4 {[%clk 0:02:08]} 32. Rc1 {[%clk
0:02:41.3]} 32... Qc7 {[%clk 0:01:54.8]} 33. d5 {[%clk 0:02:39.4]} 33... exd5
{[%clk 0:01:52.5]} 34. Qxd5 {[%clk 0:02:39.7]} 34... Rb2 {[%clk 0:01:50.3]} 35.
c5 {[%clk 0:02:38.1]} 35... Qe7 {[%clk 0:01:34.5]} 36. c6 {[%clk 0:02:36.1]}
36... Qf6 {[%clk 0:01:32.7]} 37. Qc5 {[%clk 0:02:32.3]} 37... Qe6 {[%clk
0:00:52.9]} 38. c7 {[%clk 0:02:28.1]} 38... Re2 {[%clk 0:00:53.3]} 39. c8=Q
{[%clk 0:02:25.6]} 39... Re1+ {[%clk 0:00:50]} 40. Rxe1 {[%clk 0:02:25.9]} 40...
Qxe1+ {[%clk 0:00:49.8]} 41. Kg2 {[%clk 0:02:26.5]} 41... Qe4+ {[%clk
0:00:50.6]} 42. f3 {[%clk 0:02:27.1]} 42... Qe2+ {[%clk 0:00:50]} 43. Qf2 {[%clk
0:02:27.6]} 1-0